Cogmind - Beta 13 *** ADVENTURER MODE // 2024.04.20 @ 16:49:04 Player: Alice_Reverie Result: Destroyed by G-47 Trooper with Particle Gun Performance ------------- Evolutions (1) 500 Regions Visited (2) 400 Robots Destroyed (24) 120 Value Destroyed (617) 617 Prototype IDs (6) 120 Alien Tech Used (0) 0 Bonus (0) 0 TOTAL SCORE: 1757 Bonus ------- None Cogmind --------- Core Integrity 0/400 Matter 188/300 Energy 106/250 System Corruption 1% Temperature Cool (10) Movement Treading (160) Location -9/Materials Parts ------- > --- POWER (2) -------- Ion Engine > --- PROPULSION (2) --- Light Treads Improved Flight Unit > --- UTILITY (3) ------ Visual Processing Unit > --- WEAPON (2) ------- Flail > --- INVENTORY (5) ---- Large Storage Unit Rocket Launcher Peak State ------------ > --- POWER ------------ Light Ion Engine Light Ion Engine > --- PROPULSION ------- Titanium Leg Titanium Leg > --- UTILITY ---------- Large Storage Unit Visual Processing Unit Targeting Computer > --- WEAPON ----------- Heavy EM Pulse Gun Particle Gun > --- INVENTORY -------- Light Treads [Rating: 16] Favorites ----------- Power Light Ion Engine Engine Light Ion Engine Propulsion Titanium Leg Treads Light Treads Leg Titanium Leg Wheel Armored Wheel Flight Unit Improved Flight Unit Utility Targeting Computer Device Sensor Array Storage Large Storage Unit Processor Targeting Computer Weapon Assault Rifle Energy Gun Particle Gun Ballistic Gun Assault Rifle Ballistic Cannon Light Cannon Launcher Rocket Launcher Impact Weapon Flail Build | -11 -10 -9 ------- Run | Yrd Mat Mat Slots Evolved 2 | . . 2 Power 1 | . . 1 Propulsion . | . . . Utility 1 | . . 1 Weapon . | . . . Parts Attached 37 | 6 12 19 Power 5 | 1 . 4 Engine 5 | 1 . 4 Core . | . . . Reactor . | . . . Propulsion 8 | 2 2 4 Treads 1 | . . 1 Leg 2 | . . 2 Wheel 4 | 2 2 . Hover . | . . . Flight 1 | . . 1 Utility 12 | 1 8 3 Device 8 | . 6 2 Storage 2 | 1 1 . Processor 2 | . 1 1 Hackware . | . . . Protection . | . . . Artifact . | . . . Weapon 12 | 2 2 8 Energy Gun 5 | . 1 4 Energy Cannon . | . . . Ballistic Gun 3 | 2 . 1 Ballistic Cannon 1 | . 1 . Launcher 2 | . . 2 Special Weapon . | . . . Impact Weapon 1 | . . 1 Slashing Weapon . | . . . Piercing Weapon . | . . . Special Melee Weapon . | . . . Unidentified Prototypes 2 | . . 2 Parts Lost 8 | . . 8 Power 3 | . . 3 Propulsion . | . . . Utility 2 | . . 2 Weapon 3 | . . 3 Highest Loss Streak 4 | . . 4 To Critical Strikes . | . . . Average Slot Usage (%) 92 | . 98 88 Engine 16 | . 14 18 Leg 11 | . . 18 Wheel 11 | . 28 . Device 7 | . 16 2 Storage 6 | . 4 8 Processor 14 | . 5 19 Energy Gun 11 | . 5 14 Ballistic Gun 8 | . 17 2 Ballistic Cannon 2 | . 4 1 Naked Turns . | . . . Heaviest Build 34 | 12 29 34 Greatest Support 34 | 20 24 34 Greatest Overweight (x) 2 | . 1 2 Average Overweight (x) . | . . . Largest Inventory Capacity 15 | 8 15 15 Average Capacity 9 | 7 7 12 Most Carried 5 | 5 5 5 Average Carried 2 | 2 3 1 Final Capacity 15 | 8 15 5 Final Carried 3 | 3 3 2 Class Distribution -------------------- 100% | Mutant Dominant Class ---------------- Mutant | -10/Materials Mutant | -9/Materials Resources | -11 -10 -9 ----------- Run | Yrd Mat Mat Matter Collected 608 | 227 236 145 Remotely . | . . . Salvage Created 657 | . 258 399 Parts 39 | . 21 18 Haulers Intercepted . | . . . Recyclers Shooed . | . . . Parts Field Recycled . | . . . Retrieved Matter . | . . . Parts Self-Destructed . | . . . Prevented . | . . . Kills | -11 -10 -9 ------- Run | Yrd Mat Mat Combat Hostiles Destroyed 18 | . 10 8 Melee 1 | . . 1 Guns 14 | . 10 4 Cannons 1 | . . 1 AOE 2 | . . 2 Classes Destroyed 6 | . 3 3 Worker 1 | . . 1 Operator 1 | . . 1 Watcher 4 | . 2 2 Swarmer 6 | . 6 . Grunt 10 | . 4 6 Sentry 2 | . . 2 Best Kill Streak 5 | . 3 5 Combat Bots Only 3 | . 3 3 Max Kills in Single Turn 2 | . 2 2 Gunslinging 1 | . 1 1 Exploded 1 | . . 1 Melee 1 | . . 1 Uniques/NPCs Destroyed . | . . . Combat | -11 -10 -9 -------- Run | Yrd Mat Mat Hostile Shots Fired 218 | . 48 170 Missed 59 | . 14 45 Damage Taken 1701 | . 259 1442 Core 493 | . 84 409 Absorbed by Shields . | . . . Ignored by Resistances 494 | . 82 412 Core Remaining (%) 83 | 100 66 . Volleys Fired 53 | 1 30 22 Largest 2 | 2 2 2 Hottest 110 | 40 85 110 Shots Fired 105 | 2 60 43 Gun 95 | 2 60 33 Cannon 8 | . . 8 Launcher 2 | . . 2 Special . | . . . Kinetic 71 | 2 59 10 Thermal 21 | . 1 20 Explosive 2 | . . 2 Electromagnetic 11 | . . 11 Robot Hit Streak 12 | . 9 12 Robot Miss Streak 2 | . 2 1 Penetration Max . | . . . Secondary Targets 4 | . 2 2 Max Gunslinging Chain 1 | . 1 1 Shots Hit Robots 70 | . 37 33 Core Hits 34 | . 17 17 Critical Kills 1 | . . 1 Critical Parts Destroyed 1 | . 1 . Critical Strikes 4 | . 1 3 Burn 1 | . . 1 Destroy 1 | . 1 . Blast 1 | . . 1 Smash 1 | . . 1 Melee Attacks 4 | . . 4 Impact 4 | . . 4 Slashing . | . . . Piercing . | . . . Sneak Attacks . | . . . Combat Hostiles . | . . . Follow-up Attacks . | . . . Damage Inflicted 1290 | . 469 821 Guns 877 | . 469 408 Cannons 103 | . . 103 Explosions 185 | . . 185 Melee 101 | . . 101 Ramming 24 | . . 24 Kinetic 554 | . 451 103 Thermal 356 | . 18 338 Explosive 137 | . . 137 Electromagnetic 118 | . . 118 Impact 101 | . . 101 Slashing . | . . . Piercing . | . . . Highest Corruption 1 | . . 1 Average Corruption 1 | . . 1 Corruption Purged . | . . . Corruption Blocked . | . . . Effects 7 | . . 7 Message Errors 3 | . . 3 Matter Fused 2 | . . 2 Data Loss (minor) 1 | . . 1 Data Loss (major) 1 | . . 1 Overload Shots . | . . . Overflow Damage . | . . . Projectiles . | . . . Explosions . | . . . Melee . | . . . Knockbacks 2 | . . 2 Impact 1 | . . 1 Kinetic 1 | . . 1 Secondary . | . . . Self-Inflicted Damage . | . . . Shots . | . . . Rammed . | . . . Targets Rammed 8 | . . 8 Kicked 8 | . . 8 Crushed . | . . . Highest Temperature 370 | . 24 370 Average Temperature 126 | . 7 134 Received Heat Transfer 918 | . 102 816 Effects 1 | . . 1 Energy Bleed 1 | . . 1 Siege Activations . | . . . Robots Corrupted . | . . . Combat Hostiles . | . . . Parts Fried . | . . . Impact Corruptions . | . . . Robots Melted . | . . . Combat Hostiles . | . . . Parts Melted 3 | . . 3 Heat Transferred 864 | . 37 827 Parts Sabotaged . | . . . Parts Stolen . | . . . Parts Stripped . | . . . Power Chain Reactions 1 | . . 1 Alert | -11 -10 -9 ------- Run | Yrd Mat Mat Peak Influence 306 | . 306 158 Initial 40 | . . 40 Average 92 | . 143 81 Maximum Alert Level 1 | . 1 . Low Security (%) 88 | 100 67 100 Level 1 11 | . 32 . Level 2 . | . . . Level 3 . | . . . Level 4 . | . . . Level 5 . | . . . High Security . | . . . Max Security . | . . . Squads Dispatched 2 | . . 2 Investigation 1 | . . 1 Extermination . | . . . Reinforcement 1 | . . 1 Assault . | . . . Garrison . | . . . Intercept . | . . . Searches Triggered . | . . . Construction Impeded . | . . . Haulers Reinforced . | . . . Active Scanning Responses . | . . . Cargo Convoy Interrupts . | . . . Stealth | -11 -10 -9 --------- Run | Yrd Mat Mat Distress Signals 4 | . 1 3 Communications Jammed . | . . . Distress Signals . | . . . Times Spotted 41 | . 17 24 Peak Tracking Total 10 | . 4 10 Tactical Retreats 4 | . 3 1 Traps | -11 -10 -9 ------- Run | Yrd Mat Mat Traps Triggered 2 | . 1 1 Indirectly . | . . . Trap Hack Attempts . | . . . Triggered . | . . . Disarmed . | . . . Reprogrammed . | . . . Reused . | . . . Traps Extracted . | . . . Installed . | . . . Triggered . | . . . Machines | -11 -10 -9 ---------- Run | Yrd Mat Mat Machines Disabled 2 | . 1 1 Max in Single Turn 1 | . 1 1 Machines Repaired . | . . . Machines Dismantled . | . . . Machines Sabotaged . | . . . Overloaded Fab Kills . | . . . Hacking | -11 -10 -9 --------- Run | Yrd Mat Mat Machines Accessed 14 | . 8 6 Terminals 11 | . 6 5 Fabricators . | . . . Repair Stations . | . . . Recycling Units 2 | . 2 . Scanalyzers 1 | . . 1 Garrison Access . | . . . Total Hacks 55 | . 39 16 Successful 44 | . 34 10 Failed 11 | . 5 6 Catastrophic 3 | . 1 2 Database Lockouts . | . . . Manual . | . . . Terminals 28 | . 14 14 Fabricators . | . . . Repair Stations . | . . . Recycling Units 25 | . 25 . Scanalyzers 2 | . . 2 Garrison Access . | . . . Terminal Hacks 17 | . 9 8 Record 5 | . 5 . Prototype ID Bank 2 | . . 2 Emergency Access Points 1 | . . 1 Alert Level 3 | . 1 2 Locate Traps 2 | . 1 1 Dispatch Records 1 | . . 1 Maintenance Status 1 | . 1 . Investigation Status 2 | . 1 1 Fabricator Hacks . | . . . Repair Station Hacks . | . . . Recycling Unit Hacks 25 | . 25 . Recycle Component 4 | . 4 . Process 2 | . 2 . Report Inventory 18 | . 18 . Retrieve Matter 1 | . 1 . Scanalyzer 2 | . . 2 Insert Component 1 | . . 1 Analyze 1 | . . 1 Garrison Access Hacks . | . . . Unauthorized Hacks . | . . . Terminals . | . . . Fabricators . | . . . Repair Stations . | . . . Recycling Units . | . . . Scanalyzers . | . . . Garrison Access . | . . . Data Cores Recovered 1 | . . 1 Used . | . . . Hacking Detections 12 | . 7 5 Full Trace Events 3 | . 1 2 Feedback Events . | . . . Feedback Blocked . | . . . Robot Schematics Acquired . | . . . Robots Built . | . . . Authchips . | . . . Time . | . . . Total Robot Build Rating . | . . . Part Schematics Acquired 1 | . . 1 Parts Built . | . . . Authchips . | . . . Time . | . . . Total Part Build Rating . | . . . Parts Repaired . | . . . Time . | . . . Parts Recycled 4 | . 4 . Recycled Matter 127 | . 127 . Retrieved Matter 40 | . 40 . Retrieved Components . | . . . Parts Scanalyzed 1 | . . 1 Part Schematics Acquired 1 | . . 1 Parts Damaged . | . . . Bothacking | -11 -10 -9 ------------ Run | Yrd Mat Mat Used RIF Installer . | . . . Robots Hacked . | . . . Non-combat . | . . . Combat . | . . . Robot Hacks Applied . | . . . Relay Couplers Released . | . . . Fabnet Peak Effective % . | . . . Robots Rewired . | . . . Allies Hacked . | . . . Hacks Repelled . | . . . Allies | -11 -10 -9 -------- Run | Yrd Mat Mat Total Allies . | . . . Largest Group . | . . . Highest-Rated Group . | . . . Highest-Rated Ally . | . . . Total Orders . | . . . Ally Attacks . | . . . Total Damage . | . . . Kills . | . . . Allies Corrupted . | . . . Allies Melted . | . . . Intel | -11 -10 -9 ------- Run | Yrd Mat Mat Robot Analysis Total . | . . . Derelict Logs Recovered . | . . . Drone Launches . | . . . Drone Recoveries . | . . . Exploration | -11 -10 -9 ------------- Run | Yrd Mat Mat Turns Passed 1934 | 246 659 1029 Spaces Moved 1368 | 76 557 735 Core 27 | 27 . . Treads 5 | . . 5 Legs 519 | . . 519 Wheels 627 | 49 557 21 Hover . | . . . Flight 190 | . . 190 Fastest Speed 40 | 50 80 40 Average Speed 100 | 69 92 110 Slowest Speed 180 | 80 105 180 Overloaded Moves . | . . . Propulsion Burnouts . | . . . Robots Hopped 2 | . . 2 Cave-ins Triggered . | . . . Exploration Rate (%) 53 | 5 89 67 Regions Visited 2 Branch Regions . Pre-discovered Areas . | . . . Known Exits Taken . | . . . Unknown Exits Taken 2 | 1 1 . Scrap Searched . | . . . Spaces Dug . | . . . Terrain Destroyed 15 | . . 15 Melee . | . . . Projectile . | . . . AOE 15 | . . 15 Terrain Rammed . | . . . Walls Destroyed . | . . . Machines Disabled . | . . . Actions | -11 -10 -9 --------- Run | Yrd Mat Mat Total 1810 | 267 641 902 Wait 295 | 176 28 91 Move 1362 | 75 556 731 Hop 2 | . . 2 Pick Up 30 | 9 8 13 Fast Attach . | . . . Attach 26 | 6 6 14 Detach 8 | . 4 4 Swap 11 | . 6 5 Drop 11 | . 3 8 Fire 53 | 1 30 22 Melee 4 | . . 4 Ram . | . . . Kick 8 | . . 8 Crush . | . . . Escape Stasis . | . . . Rewire . | . . . Trap . | . . . Miscellaneous . | . . . Route ------- -11/Scrapyard -10/Materials (discovered 4 exits: *Mat x2 / [*Min x2]) -9/Materials (discovered 2 exits: [*Mat] / [*Min]) History --------- Turn | Location | Event 23 | -11/Scrapyard | Discovered new exit (range 16) 247 | -11/Scrapyard | Entered Materials 332 | -10/Materials | Build established: Mutant 456 | -10/Materials | Discovered new exit (range 9) 609 | -10/Materials | Discovered new exit (range 16) 665 | -10/Materials | Discovered new exit (range 12) 861 | -10/Materials | Discovered new exit (range 16) 906 | -10/Materials | Entered another Materials area 906 | -9/Materials | Evolved 2 slots: Power x1, Utility x1 1334 | -9/Materials | Discovered new exit (range 3) 1700 | -9/Materials | Discovered new exit (range 7) 1780 | -9/Materials | Lost 3 parts (2p1w) 1787 | -9/Materials | Core integrity fell below 50% 1863 | -9/Materials | Core integrity fell below 20% 1900 | -9/Materials | Lost 4 parts (1p1u2w) 1935 | -9/Materials | Destroyed by G-47 Trooper with Particle Gun Last Messages --------------- lost. Connecting with Terminal... System corrupted: Component data lost. Dropped Broken Rocket Launcher. Critical hit (Burn: +37). Acquired Broken Rocket Launcher. Hvy. EM Pulse Gun destroyed. Critical hit (Burn: +37). Targeting Computer destroyed. Particle Gun destroyed. Faulty Hvy. Ion Engine destroyed. W-16 Scout distress signal alerts nearby ally. ALERT: Hostiles spotted, dispatching reinforcements to Terminal M001. QT :JXI8U0 T:JNC:%#O Connecting with Terminal... Acquired Flail. G-34 Mercenary suffers critical hit (Smash). G-34 Mercenary destroyed. Acquired Ion Engine. Map ----- +----------------------------------------------------+ | ??# #???????????????# ## | | ??# #???????????????# """ ## | | ??# #???????????????# """""## ! | | ??# #???????????????# """""## ####/### | | ??# #???????????????# """""## #??????# | | ??# #???????????????# """ ## #??????? | | ??# #???????????????# ## ##?????? | | ??# #######################/### #??? ?? | | ??# #?????? | | ??# #+################# T #?????? | | ??# # ???????????????# # ????? | | ??# + ??????????????####/## #?????? | | ??# #### "?????????????# = ### ###?????? | | ??# #??# "?????????????# | #?? #?#?????? | | ??# #### ""????????????# = #?? #???????? | | ??# # ????????????# #?? ???????? | | ??# #######??????????# #?? ???????? | | ??# #?? #??????????# ! #?? ???????? | | ??## #?? #??????????# ]! #?? ?????#?? | | ???# ## !! ##################?? ??????? | | ???# # !! # T #?????????+##??????# | | ???# + # g g #???????????????? | | ???# # !# """ """ #?????????????# | | ???# # # """ %"" #??????????????????? | | ???# #? # """= "" #??????????????? ??? | | ???# #?#### """@""" #??????????????????? | | ???# ###### """g""" #??????????????????? | | ???# + #??????????????????? | | ???# ################+#+##??????????????????? | | ???# #??????????????? ????????????????????? | | ???# #??????????????? ??????????????????? | | ???# #?????????????????? ?????????????????? | | ???#+#???????????????????#??????????????????? | | ?? #?????????????????????????????????????? | | # #?????????????????????????????????????? | | # " #?????????????????????????????????????? | | #""" #?????????????????????????????????????? | | #""" #?????????????????????????????????????? | | #""" /?????????????????????????????????????? | | # "" #?????????????????????????????????????? | | #""" #?????????????????????????????????????? | | ??? #?????????????????????????????????????? | | ??? #?????????????????????????????????????? | | ??? #?????????????????????????????????????? | | ??? #?????????????????????????????????????? | | ???####?????????????????????????????????????? | | ????????????????????????????????????????????? | | ????????????????????????????????????????????? | | ????????????????????????????????????????????? | | ????????????????????????????????????????????? | +----------------------------------------------------+ Best States ------------- Heat Dissipation 28 Energy Generation 15 Energy Capacity 275 Matter Stores 300 Matter Capacity 300 Sight Range 18 Robot Scan Range 14 Terrain Scan Range 14 Terrain Scan Density 10 Resistance: KI 20 Resistance: TH 20 Resistance: EX 20 Resistance: EM 20 Resistance: I 20 Resistance: S 20 Resistance: P 20 Evasion (%) 62 Targeting Accuracy 5 Recoil Reduction 1 Offensive Hacking 10 Item Schematics ----------------- Lgt. Treads | -9/Materials | Scanalyzed Robot Schematics ------------------ None Fabricated ------------ Nothing Alien Tech Used ----------------- None Achievements -------------- None Challenges ------------ None Game ------ Seed DecoyHardlightDoublenader Manual? 0 Play Time 00:29:55 Cumulative 2.5 hours Start 2024.04.20 @ 16:18:34 End 2024.04.20 @ 16:49:04 Sessions 1 Manual Loads 0 Difficulty Adventurer Special Mode None Game No. 4 Rogue 0 Adventurer 4 Explorer 0 Win Type - Total 0 Types 0/0/0/0/0/0/0/0/0 Lore% 2 Gallery% 8 Achievement% 6 Wizard Run 0 Options --------- Layout 1 ASCII 0 Keyboard 0 Movement Numpad Keybinds 0 Fullscreen 0 Font 20/X11 Map View 50x35 Zoom Use 0% Tactical HUD 0 Map Filters NONE Filters NONE Steam 1 RUN: 384d6177-28cb-48c2-af15-3d3e347ed7f8